Cogmind - Beta 9.4 @@@ ROGUE MODE // 2020.02.22 @ 23:03:38 Player: T-Rez5000 Result: Destroyed by G-34 Mercenary with Small Laser Performance ------------- Evolutions (1) 500 Regions Visited (3) 600 Robots Destroyed (29) 145 Value Destroyed (637) 637 Prototype IDs (0) 0 Alien Tech Used (0) 0 Bonus (-259) -259 TOTAL SCORE: 1623 Bonus ------- Follower Combat Kills 60 Friendly Fire -319 Cogmind --------- Core Integrity 0/400 Matter 264/300 Energy 100/100 System Corruption 0% Temperature Cool (6) Movement Core (100) Ox1 Location -9/Storage Parts ------- > --- POWER (1) -------- (None) > --- PROPULSION (3) --- (None) > --- UTILITY (3) ------ Small Storage Unit Improved Targeting Computer > --- WEAPON (2) ------- Katana > --- INVENTORY (6) ---- Heat Sink High-capacity Battery (400) Light Armor Plating Hardened Light Armor Plating Peak State ------------ > --- POWER ------------ Improved Ion Engine > --- PROPULSION ------- Improved Aluminum Leg Improved Aluminum Leg Improved Aluminum Leg > --- UTILITY ---------- Small Storage Unit Medium Storage Unit Improved Targeting Computer > --- WEAPON ----------- Particle Gun Improved Light Cannon > --- INVENTORY -------- Light Nuclear Core Aluminum Leg Aluminum Leg Improved Aluminum Leg Improved Aluminum Leg Heat Sink High-capacity Battery EM Pulse Gun Medium Laser Grenade Launcher [Rating: 17] Favorites ----------- Power Light Ion Engine Engine Light Ion Engine Power Core Light Nuclear Core Propulsion Aluminum Leg Leg Aluminum Leg Wheel Armored Wheel Utility Small Storage Unit Device Heat Sink Storage Small Storage Unit Processor Improved Targeting Computer Weapon EM Pulse Gun Energy Gun EM Pulse Gun Ballistic Gun Heavy Assault Rifle Ballistic Cannon Improved Light Cannon Launcher Grenade Launcher Slashing Weapon Katana Build | -11 -10 -9 -9 ------- Run | Scr Mat Mat Sto Slots Evolved 2 | . . 2 . Power . | . . . . Propulsion 1 | . . 1 . Utility 1 | . . 1 . Weapon . | . . . . Parts Attached 51 | 6 12 19 14 Power 5 | 1 1 1 2 Engine 4 | 1 1 1 1 Core 1 | . . . 1 Reactor . | . . . . Propulsion 21 | 2 7 8 4 Treads . | . . . . Leg 18 | 2 5 7 4 Wheel 3 | . 2 1 . Hover . | . . . . Flight . | . . . . Utility 4 | 1 1 2 . Device 1 | . . 1 . Storage 2 | 1 1 . . Processor 1 | . . 1 . Hackware . | . . . . Protection . | . . . . Artifact . | . . . . Weapon 21 | 2 3 8 8 Energy Gun 11 | 2 3 4 2 Energy Cannon . | . . . . Ballistic Gun 2 | . . . 2 Ballistic Cannon 5 | . . 4 1 Launcher 2 | . . . 2 Special Weapon . | . . . . Impact Weapon . | . . . . Slashing Weapon 1 | . . . 1 Piercing Weapon . | . . . . Special Melee Weapon . | . . . . Unidentified Prototypes . | . . . . Parts Lost 14 | . 1 . 13 Power 2 | . . . 2 Propulsion 4 | . . . 4 Utility . | . . . . Weapon 8 | . 1 . 7 Highest Loss Streak 12 | . 1 . 12 Average Slot Usage (%) 96 | . 99 95 94 Engine 11 | . 14 10 9 Leg 25 | . 26 16 30 Wheel 3 | . 1 13 . Storage 24 | . 27 22 21 Processor 6 | . . 10 11 Energy Gun 17 | . 27 12 8 Ballistic Gun 1 | . . . 4 Ballistic Cannon 3 | . . 7 5 Naked Turns . | . . . . Heaviest Build 26 | 13 21 26 26 Greatest Support 39 | 20 24 39 39 Greatest Overweight (x) 3 | 1 1 1 3 Average Overweight (x) . | . . . . Largest Inventory Capacity 10 | 6 10 10 10 Average Capacity 9 | 5 9 10 9 Most Carried 10 | 4 10 10 10 Average Carried 8 | 1 7 9 8 Final Capacity 10 | 6 10 10 6 Final Carried 10 | 4 10 10 4 Class Distribution -------------------- 95% | Mutant 4% | Scavenger-Mutant Dominant Class ---------------- Mutant | -10/Materials Mutant | -9/Materials Mutant | -9/Storage Resources | -11 -10 -9 -9 ----------- Run | Scr Mat Mat Sto Matter Collected 850 | 221 129 207 293 Remotely . | . . . . Salvage Created 916 | . 260 157 499 Parts 65 | . 23 12 30 Haulers Intercepted . | . . . . Recyclers Shooed . | . . . . Parts Field Recycled . | . . . . Retrieved Matter . | . . . . Parts Self-Destructed . | . . . . Prevented . | . . . . Kills | -11 -10 -9 -9 ------- Run | Scr Mat Mat Sto Combat Hostiles Destroyed 21 | . 9 2 10 Guns 14 | . 8 1 5 Cannons 2 | . . 1 1 AOE 5 | . 1 . 4 Classes Destroyed 8 | . 3 3 2 Worker 2 | . . 1 1 Recycler 2 | . . 1 1 Watcher 2 | . 1 . 1 Swarmer 9 | . 6 . 3 Grunt 5 | . 3 . 2 Brawler 1 | . . . 1 Duelist 1 | . . . 1 Sentry 5 | . . 2 3 Thug 2 | . . . 2 Best Kill Streak 6 | . 4 3 6 Combat Bots Only 4 | . 4 2 4 Max Kills in Single Turn 2 | . 1 1 2 Gunslinging . | . . . . Exploded 2 | . 1 . 2 Melee . | . . . . Uniques/NPCs Destroyed . | . . . . Combat | -11 -10 -9 -9 -------- Run | Scr Mat Mat Sto Damage Taken 2115 | . 309 67 1739 Core 428 | . 24 15 389 Absorbed by Shields . | . . . . Core Remaining (%) 95 | 100 90 . . Volleys Fired 69 | 1 22 7 39 Largest 2 | 2 2 2 2 Hottest 105 | 100 105 104 104 Shots Fired 130 | 2 41 14 73 Gun 93 | 2 41 7 43 Cannon 28 | . . 7 21 Launcher 9 | . . . 9 Special . | . . . . Kinetic 42 | . . 7 35 Thermal 38 | 2 22 7 7 Explosive 9 | . . . 9 Electromagnetic 41 | . 19 . 22 Robot Hit Streak 14 | 1 6 9 14 Robot Miss Streak 3 | 1 2 2 3 Penetration Max . | . . . . Secondary Targets 2 | . 2 . . Max Gunslinging Chain 1 | . 1 . . Shots Hit Robots 90 | 1 24 9 56 Core Hits 47 | 1 13 5 28 Critical Hits . | . . . . Critical Kills . | . . . . Critical Parts Destroyed . | . . . . Melee Attacks 2 | . . . 2 Impact . | . . . . Slashing 2 | . . . 2 Piercing . | . . . . Sneak Attacks . | . . . . Combat Hostiles . | . . . . Follow-up Attacks . | . . . . Damage Inflicted 2095 | 13 298 206 1578 Guns 748 | 13 259 52 424 Cannons 433 | . . 154 279 Explosions 882 | . 39 . 843 Melee 27 | . . . 27 Ramming 5 | . . . 5 Kinetic 548 | . . 154 394 Thermal 282 | 13 132 52 85 Explosive 843 | . . . 843 Electromagnetic 390 | . 166 . 224 Impact . | . . . . Slashing 27 | . . . 27 Piercing . | . . . . Highest Corruption . | . . . . Average Corruption . | . . . . Corruption Purged . | . . . . Overload Shots . | . . . . Overflow Damage 48 | . . . 48 Projectiles . | . . . . Explosions 36 | . . . 36 Melee 12 | . . . 12 Knockbacks 3 | . . 1 2 Impact . | . . . . Kinetic 3 | . . 1 2 Secondary . | . . . . Self-Inflicted Damage 97 | . . . 97 Shots 4 | . . . 4 Rammed 2 | . . . 2 Targets Rammed 2 | . . . 2 Kicked . | . . . . Crushed . | . . . . Highest Temperature 300 | 39 180 174 300 Average Temperature 80 | 19 70 73 92 Received Heat Transfer 690 | . 99 27 564 Siege Activations . | . . . . Robots Corrupted . | . . . . Combat Hostiles . | . . . . Parts Fried . | . . . . Impact Corruptions . | . . . . Robots Melted . | . . . . Combat Hostiles . | . . . . Parts Melted . | . . . . Heat Transferred 599 | 37 259 111 192 Parts Sabotaged . | . . . . Parts Stolen . | . . . . Parts Stripped . | . . . . Power Chain Reactions 1 | . 1 . . Missiles Intercepted . | . . . . Alert | -11 -10 -9 -9 ------- Run | Scr Mat Mat Sto Peak Influence 328 | . 262 111 328 Average Influence 113 | . 110 60 173 Maximum Alert Level 1 | . 1 . 1 Low Security (%) 76 | 100 77 100 55 Level 1 23 | . 22 . 44 Level 2 . | . . . . Level 3 . | . . . . Level 4 . | . . . . Level 5 . | . . . . High Security . | . . . . Max Security . | . . . . Squads Dispatched 4 | . 1 . 3 Investigation . | . . . . Extermination . | . . . . Reinforcement 2 | . 1 . 1 Assault 2 | . . . 2 Garrison . | . . . . Intercept . | . . . . Construction Impeded . | . . . . Haulers Reinforced . | . . . . Stealth | -11 -10 -9 -9 --------- Run | Scr Mat Mat Sto Distress Signals 4 | . 2 1 1 Communications Jammed . | . . . . Distress Signals . | . . . . Times Spotted 48 | . 15 5 28 Peak Tracking Total 8 | . 6 4 8 Tactical Retreats 2 | . 2 . . Traps | -11 -10 -9 -9 ------- Run | Scr Mat Mat Sto Traps Triggered 4 | . . 4 . Indirectly . | . . . . Trap Hack Attempts . | . . . . Triggered . | . . . . Disarmed . | . . . . Reprogrammed . | . . . . Reused . | . . . . Traps Extracted . | . . . . Installed . | . . . . Triggered . | . . . . Machines | -11 -10 -9 -9 ---------- Run | Scr Mat Mat Sto Machines Disabled 1 | . 1 . . Max in Single Turn 1 | . 1 . . Machines Sabotaged . | . . . . Garrisons Compromised . | . . . . Overloaded Fab Kills . | . . . . Fab Network Shutdowns . | . . . . Hacking | -11 -10 -9 -9 --------- Run | Scr Mat Mat Sto Machines Accessed . | . . . . Terminals . | . . . . Fabricators . | . . . . Repair Stations . | . . . . Recycling Units . | . . . . Scanalyzers . | . . . . Garrison Access . | . . . . Total Hacks . | . . . . Successful . | . . . . Failed . | . . . . Catastrophic . | . . . . Database Lockouts . | . . . . Manual . | . . . . Terminals . | . . . . Fabricators . | . . . . Repair Stations . | . . . . Recycling Units . | . . . . Scanalyzers . | . . . . Garrison Access . | . . . . Terminal Hacks . | . . . . Fabricator Hacks . | . . . . Repair Station Hacks . | . . . . Recycling Unit Hacks . | . . . . Scanalyzer . | . . . . Garrison Access Hacks . | . . . . Unauthorized Hacks . | . . . . Terminals . | . . . . Fabricators . | . . . . Repair Stations . | . . . . Recycling Units . | . . . . Scanalyzers . | . . . . Garrison Access . | . . . . Data Cores Recovered . | . . . . Used . | . . . . Hacking Detections . | . . . . Full Trace Events . | . . . . Feedback Events . | . . . . Feedback Blocked . | . . . . Robot Schematics Acquired . | . . . . Robots Built . | . . . . Matter . | . . . . Time . | . . . . Total Robot Build Rating . | . . . . Part Schematics Acquired . | . . . . Parts Built . | . . . . Matter . | . . . . Time . | . . . . Total Part Build Rating . | . . . . Parts Repaired . | . . . . Time . | . . . . Parts Recycled . | . . . . Recycled Matter . | . . . . Retrieved Matter . | . . . . Retrieved Components . | . . . . Parts Scanalyzed . | . . . . Part Schematics Acquired . | . . . . Parts Damaged . | . . . . Bothacking | -11 -10 -9 -9 ------------ Run | Scr Mat Mat Sto Used RIF Installer . | . . . . Robots Hacked . | . . . . Non-combat . | . . . . Combat . | . . . . Robot Hacks Applied . | . . . . Relay Couplers Released . | . . . . Robots Rewired . | . . . . Allies Hacked . | . . . . Hacks Repelled . | . . . . Allies | -11 -10 -9 -9 -------- Run | Scr Mat Mat Sto Total Allies 2 | . . . 2 Largest Group 2 | . . . 2 Highest-Rated Group 62 | . . . 62 Highest-Rated Ally 31 | . . . 31 Total Orders . | . . . . Ally Attacks 15 | . . . 15 Total Damage 267 | . . . 267 Kills 2 | . . . 2 Allies Corrupted . | . . . . Allies Melted . | . . . . Intel | -11 -10 -9 -9 ------- Run | Scr Mat Mat Sto Robot Analysis Total . | . . . . Derelict Logs Recovered . | . . . . Drone Launches . | . . . . Drone Recoveries . | . . . . Exploration | -11 -10 -9 -9 ------------- Run | Scr Mat Mat Sto Turns Passed 1072 | 61 433 235 343 Spaces Moved 532 | 42 234 123 133 Core 9 | 7 . . 2 Treads . | . . . . Legs 425 | 35 216 43 131 Wheels 98 | . 18 80 . Hover . | . . . . Flight . | . . . . Fastest Speed 50 | 50 90 90 100 Average Speed 115 | 109 120 101 120 Slowest Speed 200 | 120 150 150 200 Overloaded Moves . | . . . . Propulsion Burnouts . | . . . . Robots Hopped . | . . . . Cave-ins Triggered . | . . . . Exploration Rate (%) 19 | 4 37 14 21 Regions Visited 3 Branch Regions 1 Pre-discovered Areas . | . . . . Known Exits Taken . | . . . . Unknown Exits Taken 3 | 1 1 1 . Scrap Searched . | . . . . Spaces Dug . | . . . . Terrain Destroyed 50 | . . . 50 Melee . | . . . . Projectile 1 | . . . 1 AOE 49 | . . . 49 Actions | -11 -10 -9 -9 --------- Run | Scr Mat Mat Sto Total 848 | 52 344 213 239 Wait 150 | . 56 54 40 Move 529 | 41 233 122 133 Hop . | . . . . Pick Up 24 | 4 11 5 4 Fast Attach 23 | 6 1 15 1 Attach 13 | . 1 2 10 Detach . | . . . . Swap 15 | . 10 2 3 Drop 21 | . 10 6 5 Fire 69 | 1 22 7 39 Melee 2 | . . . 2 Ram . | . . . . Kick 2 | . . . 2 Crush . | . . . . Escape Stasis . | . . . . Rewire . | . . . . Trap . | . . . . Miscellaneous . | . . . . Route ------- -11/Scrapyard -10/Materials -9/Materials -9/Storage History --------- Turn | Location | Event 20 | -11/Scrapyard | Discovered new exit (range 16) 62 | -11/Scrapyard | Entered Materials 308 | -10/Materials | Build established: Mutant 481 | -10/Materials | Discovered new exit (range 15) 495 | -10/Materials | Entered another Materials area 495 | -9/Materials | Evolved 2 slots: Propulsion x1, Utility x1 590 | -9/Materials | Discovered new exit (range 11) 730 | -9/Materials | Entered Storage 964 | -9/Storage | Met a pair of Derelict thieves 1042 | -9/Storage | Core integrity fell below 50% 1068 | -9/Storage | Core integrity fell below 20% 1073 | -9/Storage | Destroyed by G-34 Mercenary with Small Laser Last Messages --------------- 01054_ Imp. Aluminum Leg destroyed. 01056_ The unstable cave ceiling collapses. 01056_ G-47 Trooper crushed by falling debris. 01056_ Med. Laser destroyed. 01057_ Slammed into G-47 Trooper. 01058_ K-01 Serf collects debris. 01058_ Slammed into G-47 Trooper. 01059_ The unstable cave ceiling collapses. 01060_ R-06 Scavenger inserts Heat Sink into recycling unit. 01061_ K-01 Serf collects debris. 01061_ Acquired Katana. 01062_ Aluminum Leg destroyed. 01063_ Dropped Med. Storage Unit. 01065_ Destroyed Particle Gun. 01068_ Lgt. Nuclear Core destroyed. 01070_ C-30 ARC bursts open, deploying its payload. 01070_ S-10 Pest unfolds itself. 01071_ U-05 Engineer lays Concrete. 01072_ K-01 Serf collects debris. 01072_ U-05 Engineer lays Concrete. Map ----- +----------------------------------------------------+ | ???????????????????????????????????? | | ???????????????????????????????????? | | ???????????????????????????????????? | | ???????????????????????????????????? | | ???????????????????????????????????? | | ???????????????????????????????????? | | ???????????????????????????????????? | | ???????????????????????????????????? | | ?????????????????####??##??????????? | | ??????????????#? ?? #??????????? | | ??????????????# ? #??????????? | | ??????????????# """ """ ###????????? | | ?????????????## """ """ """????????? | | ?????????????# """ """ Y"????????? | | ??????????????# """ ""?????????? | | ??????????????# """ #??????????? | | ??????????????? ! #??????????? | | ?????????????#?## ########???? | | ????????###### # =* !! #???? | | ???????# !! "" #???? | | ?????????""" T %= ! """#???? | | ?????????""" =!= r R"#???? | | ?????????""" u % s """ """#???? | | ???????# g m#s""" #???? | | ???????# [[[ ! g%""g #???? | | ???????# [[[ k Ys@ #???? | | ???????# [[ i ##*#######???? | | ???????######## #%% #####?????????? | | ???????????? # * ########?????? | | ?????????? """ #! !!#?????? | | ????????? """ " ! #?????? | | ????????# """ #% # !#?????? | | ????????# + + " #?????? | | ????????# """ # ##T# ! #?????? | | ????????# """ # #### ! #?????? | | ???????????? """?# #??######?????? | | ???????????? ?# #????"""??????? | | ???????########### #???""R"#?????? | | ???????#! # = ####"" "###???? | | ???????? #==!# #???? | | ??????????"" """ !%=#=""" ""??????? | | ??????????"" """ # !!=!""" ""??????? | | ??????????"" """ * = =""" """?????? | | ??????????"" """ % *!! #???? | | ??????????"" """ = #???? | | ?????????? # # #???? | | ?????????## ###### #???? | | ??????????#????# ##########???? | | ???????????????## #??????? | | ????????????????# #??????? | +----------------------------------------------------+ Best States ------------- Heat Dissipation 38 Energy Generation 14 Energy Capacity 265 Matter Stores 300 Matter Capacity 300 Sight Range 16 Terrain Scan Density 10 Evasion (%) 42 Targeting Accuracy 6 Item Schematics ----------------- None Robot Schematics ------------------ None Fabricated ------------ Nothing Alien Tech Used ----------------- None Achievements -------------- Backstab Challenges ------------ None Game ------ Seed ExplosiveAngularMediator Manual? 0 Play Time 00:31:32 Cumulative 13.7 hours Start 2020.02.22 @ 22:30:11 End 2020.02.22 @ 23:03:38 Sessions 1 Manual Loads 0 Difficulty Rogue Special Mode None Game No. 5 Rogue 5 Adventurer 0 Explorer 0 Win Type - Total 0 Types 0/0/0/0/0/0/0 Lore% 4 Gallery% 18 Achievement% 12 Wizard Run 0 Options --------- ASCII 0 Keyboard 1 Movement Numpad Keybinds 0 Fullscreen 1 Font 24/Smallcaps Map View 76x50 Tactical HUD 1 Map Filters NONE Filters NONE Steam 1 RUN: c33a463b-fa6b-464c-b2f0-df803a55a2b5